Cogmind - Beta 9.4 @@@ ROGUE MODE // 2020.02.27 @ 22:49:07 Player: Cipherpunk Result: Destroyed by as-59680 with Assembled Heavy Rifle Performance ------------- Evolutions (0) 0 Regions Visited (4) 800 Robots Destroyed (27) 135 Value Destroyed (417) 417 Prototype IDs (22) 440 Alien Tech Used (0) 0 Bonus (300) 300 TOTAL SCORE: 2092 Bonus ------- Aligned with FarCom 300 Cogmind --------- Core Integrity 0/250 Matter 250/300 Energy 99/100 System Corruption 0% Temperature Cool (0) Movement Rolling (140) Ox6 Location -9/Mines Parts ------- > --- POWER (1) -------- (None) > --- PROPULSION (2) --- Wheel > --- UTILITY (2) ------ High-capacity Storage Unit High-capacity Storage Unit > --- WEAPON (2) ------- (None) > --- INVENTORY (20) --- Ion Engine Improved Cooling System Medium Storage Unit Large Storage Unit Large Storage Unit Transport Network Coupler Targeting Computer Medium Armor Plating Improved Trap Extractor EM Shotgun EM Shotgun Guided Plasma Cannon Assault Rifle Remote Datajack Mining Laser Heavy Explosive Trap Heavy Explosive Trap Signal Generator Peak State ------------ > --- POWER ------------ Makeshift Power Source > --- PROPULSION ------- Wheel Compact Wheel > --- UTILITY ---------- High-capacity Storage Unit High-capacity Storage Unit > --- WEAPON ----------- Guided Plasma Cannon Assault Rifle > --- INVENTORY -------- Ion Engine Wheel Compact Wheel Improved Cooling System Medium Storage Unit Large Storage Unit Large Storage Unit Transport Network Coupler Targeting Computer Medium Armor Plating Improved Trap Extractor EM Shotgun EM Shotgun Assault Rifle Grenade Launcher Remote Datajack Mining Laser Heavy Explosive Trap Heavy Explosive Trap Signal Generator [Rating: 21] Favorites ----------- Power Ion Engine Engine Ion Engine Propulsion Wheel Leg Aluminum Leg Wheel Wheel Utility High-capacity Storage Unit Storage High-capacity Storage Unit Protection Utility Shielding Weapon Assault Rifle Energy Gun EM Shotgun Energy Cannon Guided Plasma Cannon Ballistic Gun Assault Rifle Launcher Grenade Launcher Build | -11 -10 -10 -10 -9 ------- Run | Scr Mat Min Exi Min Slots Evolved . | . . . . . Power . | . . . . . Propulsion . | . . . . . Utility . | . . . . . Weapon . | . . . . . Parts Attached 21 | . 9 5 . 7 Power 2 | . 1 . . 1 Engine 2 | . 1 . . 1 Core . | . . . . . Reactor . | . . . . . Propulsion 6 | . 2 1 . 3 Treads . | . . . . . Leg . | . . . . . Wheel 6 | . 2 1 . 3 Hover . | . . . . . Flight . | . . . . . Utility 5 | . 4 1 . . Device . | . . . . . Storage 4 | . 3 1 . . Processor . | . . . . . Hackware . | . . . . . Protection 1 | . 1 . . . Artifact . | . . . . . Weapon 8 | . 2 3 . 3 Energy Gun 2 | . 2 . . . Energy Cannon 2 | . . . . 2 Ballistic Gun 2 | . . 2 . . Ballistic Cannon . | . . . . . Launcher 2 | . . 1 . 1 Special Weapon . | . . . . . Impact Weapon . | . . . . . Slashing Weapon . | . . . . . Piercing Weapon . | . . . . . Special Melee Weapon . | . . . . . Unidentified Prototypes . | . . . . . Parts Lost 8 | . 1 1 . 6 Power 1 | . . . . 1 Propulsion 4 | . 1 . . 3 Utility . | . . . . . Weapon 3 | . . 1 . 2 Highest Loss Streak 6 | . 1 1 . 6 Average Slot Usage (%) 97 | . 94 99 100 97 Engine 13 | . 14 14 14 13 Leg 6 | . 16 . . . Wheel 21 | . 11 28 28 26 Storage 26 | . 22 28 28 28 Energy Gun 6 | . 7 9 . . Ballistic Gun 20 | . 20 16 28 19 Naked Turns . | . . . . . Heaviest Build 81 | 13 59 75 73 81 Greatest Support 26 | 20 26 26 26 26 Greatest Overweight (x) 6 | . 3 2 2 6 Average Overweight (x) 1 | . . 2 2 2 Largest Inventory Capacity 20 | 6 18 20 20 20 Average Capacity 16 | 6 12 19 20 20 Most Carried 20 | 6 17 20 20 20 Average Carried 16 | 6 10 19 20 19 Final Capacity 20 | 6 18 20 20 20 Final Carried 20 | 6 17 20 20 18 Class Distribution -------------------- 50% | Hauler-Mutant 49% | Mutant Dominant Class ---------------- Mutant | -10/Materials Hauler-Mutant | -10/Mines Hauler-Mutant | -10/Exiles Hauler-Mutant | -9/Mines Resources | -11 -10 -10 -10 -9 ----------- Run | Scr Mat Min Exi Min Matter Collected 732 | 200 379 107 . 46 Remotely . | . . . . . Salvage Created 642 | . 423 85 . 134 Parts 44 | . 27 12 . 5 Haulers Intercepted 2 | . 2 . . . Recyclers Shooed 1 | . 1 . . . Parts Field Recycled . | . . . . . Retrieved Matter . | . . . . . Parts Self-Destructed . | . . . . . Prevented . | . . . . . Kills | -11 -10 -10 -10 -9 ------- Run | Scr Mat Min Exi Min Combat Hostiles Destroyed 23 | . 10 5 . 8 Guns 11 | . 10 1 . . Cannons 3 | . . . . 3 AOE 9 | . . 4 . 5 Classes Destroyed 7 | . 4 . . 3 Tunneler 1 | . . . . 1 Hauler 2 | . 2 . . . Watcher 1 | . 1 . . . Swarmer 9 | . 6 3 . . Grunt 7 | . 4 2 . 1 Brawler 1 | . . . . 1 Assembled 6 | . . . . 6 Best Kill Streak 6 | . 3 3 . 6 Combat Bots Only 6 | . 3 3 . 6 Max Kills in Single Turn 2 | . 1 2 . 2 Gunslinging . | . . . . . Exploded 2 | . . 2 . 2 Melee . | . . . . . Uniques/NPCs Destroyed . | . . . . . Combat | -11 -10 -10 -10 -9 -------- Run | Scr Mat Min Exi Min Damage Taken 1101 | . 584 55 . 462 Core 264 | . 140 18 . 106 Absorbed by Shields . | . . . . . Core Remaining (%) 100 | 100 . . . . Volleys Fired 83 | . 58 7 . 18 Largest 2 | . 2 2 . 2 Hottest 120 | . 90 40 . 120 Shots Fired 144 | . 116 9 . 19 Gun 122 | . 116 4 . 2 Cannon 12 | . . . . 12 Launcher 10 | . . 5 . 5 Special . | . . . . . Kinetic 104 | . 98 4 . 2 Thermal 12 | . . . . 12 Explosive 10 | . . 5 . 5 Electromagnetic 18 | . 18 . . . Robot Hit Streak 17 | . 9 3 . 17 Robot Miss Streak 6 | . 6 2 . . Penetration Max . | . . . . . Secondary Targets 2 | . 2 . . . Max Gunslinging Chain 1 | . 1 . . . Shots Hit Robots 87 | . 70 3 . 14 Core Hits 45 | . 23 9 . 13 Critical Hits 1 | . 1 . . . Critical Kills . | . . . . . Critical Parts Destroyed 1 | . 1 . . . Melee Attacks . | . . . . . Impact . | . . . . . Slashing . | . . . . . Piercing . | . . . . . Sneak Attacks . | . . . . . Combat Hostiles . | . . . . . Follow-up Attacks . | . . . . . Damage Inflicted 1831 | . 827 253 . 751 Guns 876 | . 827 24 . 25 Cannons 378 | . . . . 378 Explosions 577 | . . 229 . 348 Melee . | . . . . . Ramming . | . . . . . Kinetic 649 | . 600 24 . 25 Thermal 378 | . . . . 378 Explosive 577 | . . 229 . 348 Electromagnetic 227 | . 227 . . . Impact . | . . . . . Slashing . | . . . . . Piercing . | . . . . . Highest Corruption . | . . . . . Average Corruption . | . . . . . Corruption Purged . | . . . . . Overload Shots . | . . . . . Overflow Damage . | . . . . . Projectiles . | . . . . . Explosions . | . . . . . Melee . | . . . . . Knockbacks . | . . . . . Impact . | . . . . . Kinetic . | . . . . . Secondary . | . . . . . Self-Inflicted Damage 48 | . . . . 48 Shots 3 | . . . . 3 Rammed . | . . . . . Targets Rammed . | . . . . . Kicked . | . . . . . Crushed . | . . . . . Highest Temperature 420 | . 120 . . 420 Average Temperature 115 | . 45 . . 161 Received Heat Transfer 228 | . 222 . . 6 Siege Activations . | . . . . . Robots Corrupted . | . . . . . Combat Hostiles . | . . . . . Parts Fried 1 | . 1 . . . Impact Corruptions . | . . . . . Robots Melted . | . . . . . Combat Hostiles . | . . . . . Parts Melted . | . . . . . Heat Transferred 880 | . . . . 880 Parts Sabotaged . | . . . . . Parts Stolen . | . . . . . Parts Stripped . | . . . . . Power Chain Reactions . | . . . . . Missiles Intercepted . | . . . . . Alert | -11 -10 -10 -10 -9 ------- Run | Scr Mat Min Exi Min Peak Influence 214 | . 214 163 . 55 Average Influence 61 | . 62 80 . 17 Maximum Alert Level 1 | . 1 . . . Low Security (%) 96 | 100 91 100 . 100 Level 1 3 | . 8 . . . Level 2 . | . . . . . Level 3 . | . . . . . Level 4 . | . . . . . Level 5 . | . . . . . High Security . | . . . . . Max Security . | . . . . . Squads Dispatched 2 | . 2 . . . Investigation 1 | . 1 . . . Extermination . | . . . . . Reinforcement 1 | . 1 . . . Assault . | . . . . . Garrison . | . . . . . Intercept . | . . . . . Construction Impeded . | . . . . . Haulers Reinforced . | . . . . . Stealth | -11 -10 -10 -10 -9 --------- Run | Scr Mat Min Exi Min Distress Signals 1 | . 1 . . . Communications Jammed . | . . . . . Distress Signals . | . . . . . Times Spotted 51 | . 23 7 . 21 Peak Tracking Total 13 | . 5 3 . 13 Tactical Retreats 3 | . 1 . . 2 Traps | -11 -10 -10 -10 -9 ------- Run | Scr Mat Min Exi Min Traps Triggered 2 | . 1 . . 1 Indirectly . | . . . . . Trap Hack Attempts . | . . . . . Triggered . | . . . . . Disarmed . | . . . . . Reprogrammed . | . . . . . Reused . | . . . . . Traps Extracted . | . . . . . Installed . | . . . . . Triggered . | . . . . . Exploded 1 | . . . 1 . Machines | -11 -10 -10 -10 -9 ---------- Run | Scr Mat Min Exi Min Machines Disabled . | . . . . . Max in Single Turn . | . . . . . Machines Sabotaged . | . . . . . Garrisons Compromised . | . . . . . Overloaded Fab Kills . | . . . . . Fab Network Shutdowns . | . . . . . Hacking | -11 -10 -10 -10 -9 --------- Run | Scr Mat Min Exi Min Machines Accessed 5 | . 3 . 1 1 Terminals 3 | . 3 . . . Fabricators . | . . . . . Repair Stations . | . . . . . Recycling Units . | . . . . . Scanalyzers . | . . . . . Garrison Access . | . . . . . Total Hacks 8 | . 6 . 1 1 Successful 6 | . 4 . 1 1 Failed 2 | . 2 . . . Catastrophic . | . . . . . Database Lockouts . | . . . . . Manual 5 | . 4 . 1 . Terminals 6 | . 6 . . . Fabricators . | . . . . . Repair Stations . | . . . . . Recycling Units . | . . . . . Scanalyzers . | . . . . . Garrison Access . | . . . . . Terminal Hacks 6 | . 4 . 1 1 Open Door 1 | . . . . 1 Recall Investigation 1 | . 1 . . . Recall Reinforcements 1 | . 1 . . . Registered Components 1 | . 1 . . . Zone Layout 1 | . 1 . . . EX-Prototype ID Bank 1 | . . . 1 . Fabricator Hacks . | . . . . . Repair Station Hacks . | . . . . . Recycling Unit Hacks . | . . . . . Scanalyzer . | . . . . . Garrison Access Hacks . | . . . . . Unauthorized Hacks . | . . . . . Terminals . | . . . . . Fabricators . | . . . . . Repair Stations . | . . . . . Recycling Units . | . . . . . Scanalyzers . | . . . . . Garrison Access . | . . . . . Data Cores Recovered . | . . . . . Used . | . . . . . Hacking Detections 1 | . 1 . . . Full Trace Events . | . . . . . Feedback Events . | . . . . . Feedback Blocked . | . . . . . Robot Schematics Acquired . | . . . . . Robots Built . | . . . . . Matter . | . . . . . Time . | . . . . . Total Robot Build Rating . | . . . . . Part Schematics Acquired . | . . . . . Parts Built . | . . . . . Matter . | . . . . . Time . | . . . . . Total Part Build Rating . | . . . . . Parts Repaired . | . . . . . Time . | . . . . . Parts Recycled . | . . . . . Recycled Matter . | . . . . . Retrieved Matter . | . . . . . Retrieved Components . | . . . . . Parts Scanalyzed . | . . . . . Part Schematics Acquired . | . . . . . Parts Damaged . | . . . . . Bothacking | -11 -10 -10 -10 -9 ------------ Run | Scr Mat Min Exi Min Used RIF Installer . | . . . . . Robots Hacked . | . . . . . Non-combat . | . . . . . Combat . | . . . . . Robot Hacks Applied . | . . . . . Relay Couplers Released . | . . . . . Robots Rewired . | . . . . . Allies Hacked . | . . . . . Hacks Repelled . | . . . . . Allies | -11 -10 -10 -10 -9 -------- Run | Scr Mat Min Exi Min Total Allies . | . . . . . Largest Group . | . . . . . Highest-Rated Group . | . . . . . Highest-Rated Ally . | . . . . . Total Orders . | . . . . . Ally Attacks . | . . . . . Total Damage . | . . . . . Kills . | . . . . . Allies Corrupted . | . . . . . Allies Melted . | . . . . . Intel | -11 -10 -10 -10 -9 ------- Run | Scr Mat Min Exi Min Robot Analysis Total . | . . . . . Derelict Logs Recovered 4 | . . 3 . 1 Drone Launches . | . . . . . Drone Recoveries . | . . . . . Exploration | -11 -10 -10 -10 -9 ------------- Run | Scr Mat Min Exi Min Turns Passed 1888 | 5 710 637 257 279 Spaces Moved 1346 | 5 418 525 229 169 Core . | . . . . . Treads . | . . . . . Legs 218 | 5 213 . . . Wheels 1128 | . 205 525 229 169 Hover . | . . . . . Flight . | . . . . . Fastest Speed 100 | 120 100 110 110 110 Average Speed 113 | 120 118 110 110 116 Slowest Speed 210 | 120 210 110 110 140 Overloaded Moves . | . . . . . Propulsion Burnouts . | . . . . . Robots Hopped . | . . . . . Cave-ins Triggered . | . . . . . Exploration Rate (%) 53 | 2 65 97 61 40 Regions Visited 4 Branch Regions 3 Pre-discovered Areas . | . . . . . Known Exits Taken . | . . . . . Unknown Exits Taken 4 | 1 1 1 1 . Scrap Searched 3 | . . 3 . . Spaces Dug . | . . . . . Terrain Destroyed 47 | . . 24 . 23 Melee . | . . . . . Projectile 1 | . . . . 1 AOE 46 | . . 24 . 22 Actions | -11 -10 -10 -10 -9 --------- Run | Scr Mat Min Exi Min Total 1566 | 4 516 578 234 234 Wait 70 | . 9 26 4 31 Move 1342 | 4 417 524 228 169 Hop . | . . . . . Pick Up 29 | . 16 9 1 3 Fast Attach 4 | . 2 . . 2 Attach 5 | . 2 1 . 2 Detach . | . . . . . Swap 12 | . 5 4 . 3 Drop 21 | . 7 7 1 6 Fire 83 | . 58 7 . 18 Melee . | . . . . . Ram . | . . . . . Kick . | . . . . . Crush . | . . . . . Escape Stasis . | . . . . . Rewire . | . . . . . Trap . | . . . . . Miscellaneous . | . . . . . Route ------- -11/Scrapyard -10/Materials (discovered 2 exits: [*Mat] / [*Min]) -10/Mines (discovered 2 exits: [*Mat] / *Exi) -10/Exiles -9/Mines History --------- Turn | Location | Event 1 | -11/Scrapyard | Discovered new exit (range 3) 6 | -11/Scrapyard | Entered Materials 196 | -10/Materials | Discovered new exit (range 12) 300 | -10/Materials | Build established: Mutant 548 | -10/Materials | Core integrity fell below 50% 564 | -10/Materials | Discovered new exit (range 5) 716 | -10/Materials | Entered Mines 717 | -10/Mines | Met a Derelict testing a Signal Generator 722 | -10/Mines | Found Signal Generator 865 | -10/Mines | Learned Materials emergency access door positions 886 | -10/Mines | Found a hidden stash of uninstalled traps 957 | -10/Mines | Discovered new exit (range 5) 1030 | -10/Mines | Learned location of 1 exit from Materials 1059 | -10/Mines | Learned Materials terminal intel 1232 | -10/Mines | Build established: Hauler-Mutant 1348 | -10/Mines | Deemed a non-threat by the Exiles lab entrance 1349 | -10/Mines | Discovered new exit (range 5) 1353 | -10/Mines | Entered Exiles 1381 | -10/Exiles | Met 8R-AWN 1400 | -10/Exiles | Met EX-HEX 1437 | -10/Exiles | Met EX-BIN 1450 | -10/Exiles | Aligned with FarCom system 1451 | -10/Exiles | Given EX-Vault access code 1479 | -10/Exiles | Opened EX-Vault 1504 | -10/Exiles | Found Gui. Plasma Cannon 1528 | -10/Exiles | Warned to stay clear of 0b10 Research branches 1529 | -10/Exiles | Exiles lab attacked by MAIN.C 1600 | -10/Exiles | Discovered new exit (range 10) 1610 | -10/Exiles | Left Exiles lab with Gui. Plasma Cannon 1610 | -10/Exiles | Entered Mines 1614 | -9/Mines | Met a Derelict who couldn't figure out how to use a Trap Extractor 1620 | -9/Mines | Met a Derelict bent on vengeance 1671 | -9/Mines | Learned Materials non-interactive machine intel 1855 | -9/Mines | Assembled infested the area 1878 | -9/Mines | Core integrity fell below 20% 1889 | -9/Mines | Destroyed by as-59680 with Assembled Heavy Rifle Last Messages --------------- 01866_ as-76626 destroyed. 01866_ as-90875 destroyed. 01868_ as-68753 destroyed. 01872_ as-38236 destroyed. 01873_ C-30 ARC bursts open, deploying its payload. 01873_ D-53 Grenadier unfolds itself. 01874_ The unstable cave ceiling collapses. 01874_ as-33582 destroyed. 01875_ as-26635 destroyed. 01875_ as-27792 destroyed. 01876_ Grenade Launcher destroyed. 01876_ Wheel destroyed. 01877_ Assault Rifle destroyed. 01878_ Mak. Power Source destroyed. 01879_ The unstable cave ceiling collapses. 01879_ as-46210 destroyed. 01879_ Com. Wheel destroyed. 01880_ The unstable cave ceiling collapses. 01880_ Com. Wheel destroyed. 01883_ as-24305 destroyed. Map ----- +----------------------------------------------------+ | ?????????????????????#### ##????# #?????### | | ???????????????####### ##???### ######??## | | ???????????# ####?# ##??## | | ?????????????######## #?# #???## | | ????????????????????# ### ###|%### #????### | | ????????????????????## ###?# !=#?? ##??????? | | ?????????????????????###????##### %#??? #???????? | | ???????????????????????????????## #???? #???????? | | ????????????????????????????????# #????? ???????? | | ???????????????????###??????##??# #????? ??????? | | ??????????????????# ????## #?# #?????? ?????? | | ?????????????????? ??## ## #??????? ????? | | ?????????????????? ## ##??????? ???? | | ????????????????? ##??????###??? | | ????????????????? #???????????? | | ????????????????? #???????????? | | ?????????????????? ####### #???????????? | | ????????????????????????????## g ##???????????? | | ?????????????????????????????# ##????????????? | | ????????????????????????????## ##?????????????? | | ???????????????????????????## ##?????????????? | | ?????????????????????????### #?????????????? | | ?????????????????????##### #?????????????? | | ????????????????????## ##?????????????? | | ????????????????????# ###??????????????? | | ????????????????????# @ ##????????????????? | | ???????????????????## ### ##?????????????????? | | ??????????????????## ##?####??????????????????? | | ??????????????????# ##????????????????????????? | | ??????????????????# ##????????????????????????? | | ????????????????### # #????????????????????????? | | ??????????????### #????????????????????????? | | ?????????????## #????????????????????????? | | ????????????## # #????????????????????????? | | ????????????# #????????????????????????? | | ??????????# #????????????????????????? | | ??????????# #???????????????????????? | | ???????!%/ #??????????????????????? | | ?????? ! % * #?????????????????????? | | ???????## !% ????????????????????? | | ????????# # = #??????????????????? | | ??????????#### # "#??????????????????? | | ?????????????##### "%#??????????????????? | | ?????????????????## " ?????????????????? | | ??????????????????## ## ?????????????????? | | ???????????????????####?### ###?????????????????? | | ???????????????????????????###???????????????????? | | ?????????????????????????????????????????????????? | | ?????????????????????????????????????????????????? | | ?????????????????????????????????????????????????? | +----------------------------------------------------+ Best States ------------- Heat Dissipation 25 Energy Generation 15 Energy Capacity 250 Matter Stores 300 Matter Capacity 300 Sight Range 16 Terrain Scan Density 10 Utility Shielding 33 Evasion (%) 40 Item Schematics ----------------- None Robot Schematics ------------------ None Fabricated ------------ Nothing Alien Tech Used ----------------- None Achievements -------------- None Challenges ------------ None Game ------ Seed FieldMassMantle Manual? 0 Play Time 00:26:13 Cumulative 100.2 hours Start 2020.02.27 @ 21:56:20 End 2020.02.27 @ 22:49:07 Sessions 1 Manual Loads 0 Difficulty Rogue Special Mode None Game No. 90 Rogue 90 Adventurer 0 Explorer 0 Win Type - Total 1 Types 1/0/0/0/0/0/0 Lore% 52 Gallery% 59 Achievement% 42 Wizard Run 0 Options --------- ASCII 0 Keyboard 1 Movement Numpad Keybinds 0 Fullscreen 2 Font 18/Terminus Map View 76x50 Tactical HUD 1 Map Filters NONE Filters NONE Steam 1 RUN: f13d4f0f-e43d-4b14-b20e-a674bd3d6564